Cogmind - Beta 16.1 @@@ ROGUE MODE // 2026.04.01 @ 16:11:59 Player: SunShine214 Result: Destroyed by B-75 Beast with Heavy Plasma Cannon Performance ------------- Evolutions (5) 2500 Regions Visited (10) 2000 Robots Destroyed (171) 855 Value Destroyed (5599) 5599 Prototype IDs (4) 80 Alien Tech Used (0) 0 Bonus (1588) 1588 TOTAL SCORE: 12622 Bonus ------- High Alert Combat Kills 918 Entered Garrisons 200 Entered DSFs 500 Friendly Fire -30 Cogmind --------- Core Integrity 0/1000 Matter 230/300 Energy 100/100 System Corruption 38% Temperature Cool (13) Movement Flying (35) Location -5/Extension Parts ------- > --- POWER (2) -------- (None) > --- PROPULSION (4) --- VTOL Module > --- UTILITY (7) ------ Improved Coolant Injector (fused) Graphene Brace Mini Drone Bay (0/3) > --- WEAPON (4) ------- (None) > --- INVENTORY (5) ---- Improved Medium Treads Improved Medium Treads VTOL Module Hardened Heavy Armor Plating Peak State ------------ > --- POWER ------------ Light Nuclear Core Light Nuclear Core > --- PROPULSION ------- Flexi-carbon Leg Flexi-carbon Leg Flexi-carbon Leg Flexi-carbon Leg > --- UTILITY ---------- Large Storage Unit Improved Sensor Array Improved Signal Interpreter Advanced Targeting Computer Advanced Targeting Computer Hardened Medium Armor Plating Graphene Brace > --- WEAPON ----------- Lightning Gun Long-range Proton Cannon Long-range Proton Cannon Heavy Pick > --- INVENTORY -------- Flexi-carbon Leg Nuclear Pulse Array Nuclear Pulse Array Improved Coolant Injector Hardened Heavy Armor Plating Layered Light Armor Plating Point Defense System Mini Drone Bay Mini Drone Bay Mini Grenade Launcher Power Maul [Rating: 77] Favorites ----------- Power Light Nuclear Core Engine Ion Engine Power Core Light Nuclear Core Propulsion Light Treads Treads Light Treads Leg Flexi-carbon Leg Flight Unit VTOL Module Utility Advanced Targeting Computer Device Graphene Brace Storage Large Storage Unit Processor Advanced Targeting Computer Hackware Hacking Suite Protection Hardened Medium Armor Plating Weapon Heavy EM Pulse Gun Energy Gun Heavy EM Pulse Gun Energy Cannon Improved EM Pulse Cannon Ballistic Gun Light Assault Rifle Ballistic Cannon Mini Assault Cannon Launcher Advanced EMP Blaster Special Weapon Advanced Remote Datajack Impact Weapon Power Maul Piercing Weapon Heavy Pick Build | -11 -10 -9 -8 -7 -6 -6 -5 -5 -5 -5 ------- Run | Yrd Mat Mat Mat Fac Fac DSF Fac Gar Fac Ext Slots Evolved 10 | . . 2 2 2 2 . 2 . . . Power 1 | . . . . . . . 1 . . . Propulsion 2 | . . . 1 . 1 . . . . . Utility 5 | . . 2 1 2 . . . . . . Weapon 2 | . . . . . 1 . 1 . . . Parts Attached 116 | 7 9 11 25 32 . 11 2 19 . . Power 16 | 1 2 1 3 4 . . . 5 . . Engine 6 | 1 2 1 1 . . . . 1 . . Core 10 | . . . 2 4 . . . 4 . . Reactor . | . . . . . . . . . . . Propulsion 34 | 2 3 3 7 8 . 5 . 6 . . Treads 21 | 2 3 3 7 6 . . . . . . Leg 5 | . . . . . . 5 . . . . Wheel . | . . . . . . . . . . . Hover . | . . . . . . . . . . . Flight 8 | . . . . 2 . . . 6 . . Utility 33 | 2 1 3 7 13 . 2 1 4 . . Device 12 | 1 . . 3 3 . 1 1 3 . . Storage 4 | 1 . 2 . . . 1 . . . . Processor 6 | . 1 1 2 2 . . . . . . Hackware 1 | . . . 1 . . . . . . . Protection 10 | . . . 1 8 . . . 1 . . Artifact . | . . . . . . . . . . . Weapon 33 | 2 3 4 8 7 . 4 1 4 . . Energy Gun 13 | 1 3 3 3 . . 2 1 . . . Energy Cannon 7 | . . . . 4 . 2 . 1 . . Ballistic Gun 4 | 1 . . 2 . . . . 1 . . Ballistic Cannon 2 | . . . 1 1 . . . . . . Launcher 4 | . . 1 2 1 . . . . . . Special Weapon 1 | . . . . . . . . 1 . . Impact Weapon 1 | . . . . 1 . . . . . . Slashing Weapon . | . . . . . . . . . . . Piercing Weapon 1 | . . . . . . . . 1 . . Special Melee Weapon . | . . . . . . . . . . . Unidentified Prototypes 4 | . . . 2 2 . . . . . . Corrupted Parts 10 | . . 1 4 1 . . . 4 . . System Corruption 47 | . . 4 25 2 . . . 16 . . Parts Lost 63 | . . 1 14 13 . 4 . 31 . . Power 9 | . . . 2 2 . . . 5 . . Propulsion 22 | . . . 5 5 . 2 . 10 . . Utility 14 | . . . 2 4 . 1 . 7 . . Weapon 18 | . . 1 5 2 . 1 . 9 . . Highest Loss Streak 13 | . . 1 7 2 . 4 . 13 . . To Critical Strikes . | . . . . . . . . . . . Average Backups 12 | . 6 12 13 14 13 11 11 10 4 4 Power 1 | . 1 1 1 1 2 1 1 1 . . Propulsion 2 | . 2 3 1 2 3 3 3 4 3 3 Utility 4 | . . 3 3 6 6 4 5 4 1 1 Weapon 3 | . 2 4 6 4 2 2 2 . . . Tool/Special . | . . . . . . . . . . . Unused Backups 28 | . 2 . 3 9 . 5 . 6 . 3 Power 3 | . . . 1 . . 1 . 1 . . Propulsion 11 | . . . 1 1 . 3 . 3 . 3 Utility 7 | . . . 1 3 . 1 . 2 . . Weapon 7 | . 2 . . 5 . . . . . . Tool/Special . | . . . . . . . . . . . Average Slot Usage (%) 87 | . 100 81 89 95 86 94 94 67 23 23 Engine 3 | . 14 11 2 1 . . . 1 . . Core 4 | . . . 6 5 6 6 5 4 . . Treads 16 | . 28 22 21 19 20 8 . . . . Leg 2 | . . . . . . 14 23 10 . . Flight 1 | . . . . . . . . 6 5 5 Device 10 | . 10 . 7 14 13 13 11 12 17 17 Storage 7 | . 14 11 9 7 6 6 5 4 . . Processor 16 | . 3 15 18 23 20 20 17 7 . . Protection 4 | . . . 6 6 6 6 5 2 . . Energy Gun 5 | . 17 20 6 1 . 5 5 . . . Energy Cannon 3 | . . . . 5 6 4 11 4 . . Ballistic Gun 1 | . 10 . 4 . . . . . . . Ballistic Cannon 2 | . . . 6 3 . 3 . . . . Launcher 1 | . . 1 . 3 . 1 5 . . . Peak Build Rating 77 | 9 12 16 40 58 45 67 71 77 23 23 Average Rating 38 | 6 9 13 24 48 45 57 70 56 23 23 On Entrance 31 | . 9 11 16 40 45 45 67 71 23 23 Avg Prop Armor Cover (%) 2 | . . . . 1 . 5 . . . . Naked Turns . | . . . . . . . . . . . Heaviest Build 71 | 13 17 71 40 49 45 54 58 65 4 4 Greatest Support 80 | 40 40 43 63 68 65 80 80 80 4 4 Greatest Overweight (x) 8 | . . 1 1 7 . 2 . 8 . . Average Overweight (x) . | . . . . . . . . . . . Largest Inventory Capacity 20 | 8 8 20 15 15 15 15 15 15 5 5 Average Capacity 13 | 7 8 14 15 15 15 14 15 14 5 5 Most Carried 15 | 2 8 15 15 15 14 15 15 15 5 5 Average Carried 12 | . 6 12 13 14 14 13 14 12 5 5 Final Capacity 15 | 8 8 15 15 15 15 15 15 5 5 5 Final Carried 15 | 2 8 15 14 14 14 15 15 5 5 5 Class Distribution -------------------- 53% | Scavenger-Mutant 40% | Mutant 5% | Gunner Dominant Class ---------------- Scavenger-Mutant | -10/Materials Mutant | -9/Materials Scavenger-Mutant | -8/Materials Scavenger-Mutant | -7/Factory Mutant | -6/Factory Gunner | -6/DSF Gunner | -5/Factory Mutant | -5/Garrison Mutant | -5/Factory Mutant | -5/Extension Resources | -11 -10 -9 -8 -7 -6 -6 -5 -5 -5 -5 ----------- Run | Yrd Mat Mat Mat Fac Fac DSF Fac Gar Fac Ext Matter Collected 2897 | 287 93 217 582 1150 . 47 . 521 . . Remotely . | . . . . . . . . . . . Salvage Created 6942 | 169 340 611 1492 3592 . 200 39 499 . . Parts 351 | 14 27 45 62 178 . 11 3 11 . . Haulers Intercepted 5 | . 2 2 1 . . . . . . . Recyclers Shooed 1 | . . 1 . . . . . . . . Parts Field Recycled . | . . . . . . . . . . . Retrieved Matter . | . . . . . . . . . . . Parts Self-Destructed . | . . . . . . . . . . . Prevented . | . . . . . . . . . . . Parts Restored . | . . . . . . . . . . . Kills | -11 -10 -9 -8 -7 -6 -6 -5 -5 -5 -5 ------- Run | Yrd Mat Mat Mat Fac Fac DSF Fac Gar Fac Ext Combat Hostiles Destroyed 141 | . 10 12 24 62 . 4 . 29 . . Melee 9 | . . . . 1 . . . 8 . . Guns 39 | . 10 8 11 1 . 1 . 8 . . Cannons 55 | . . . 11 35 . . . 9 . . AOE 31 | . . 3 2 21 . 3 . 2 . . Classes Destroyed 18 | 3 4 3 3 3 . . . 2 . . Worker 18 | 1 . . . 17 . . . . . . Builder 15 | . . 1 2 12 . . . . . . Tunneler 2 | 2 . . . . . . . . . . Hauler 5 | . 2 2 1 . . . . . . . Recycler 7 | 1 . . 3 3 . . . . . . Operator 3 | . 1 . . 2 . . . . . . Watcher 4 | . . 2 . 1 . . 1 . . . Swarmer 18 | . 6 4 . 1 . 3 . 4 . . Grunt 69 | . 4 4 18 43 . . . . . . Brawler 3 | . . . . 3 . . . . . . Protector 1 | . . . . 1 . . . . . . Sentry 14 | . . 4 2 8 . . . . . . Specialist 2 | . . . 2 . . . . . . . Hunter 1 | . . . 1 . . . . . . . Programmer 5 | . . . . 5 . . . . . . Heavy 3 | . . . 1 1 . 1 . . . . Behemoth 1 | . . . . . . . . 1 . . Assembled 24 | . . . . . . . . 24 . . Best Kill Streak 19 | 2 6 4 8 19 . 3 1 7 . . Combat Bots Only 8 | . 6 3 7 8 . 3 . 7 . . Max Kills in Single Turn 6 | 1 2 2 2 6 . 3 1 2 . . Gunslinging 1 | . 1 . . . . . . . . . Exploded 3 | . . 1 1 3 . 3 . 2 . . Melee 1 | . . . . 1 . . . 1 . . Uniques/NPCs Destroyed . | . . . . . . . . . . . Combat | -11 -10 -9 -8 -7 -6 -6 -5 -5 -5 -5 -------- Run | Yrd Mat Mat Mat Fac Fac DSF Fac Gar Fac Ext Hostile Shots Fired 1047 | . 69 54 142 399 . 32 11 318 1 21 Missed 350 | . 12 18 45 159 . 10 1 95 1 9 Hits 697 | . 57 36 97 240 . 22 10 223 . 12 Melee 24 | . . . . 3 . . . 21 . . Projectile 673 | . 57 36 97 237 . 22 10 202 . 12 Critical Strikes 26 | . 2 2 6 7 . 4 . 5 . . Actively Blocked 15 | . . . . 7 . 4 . 4 . . Part Disruptions 4 | . . . . . . . . 4 . . Damage Taken 11127 | . 598 787 1652 3342 . 734 155 3547 . 312 Core 2139 | . 107 204 300 345 . 154 . 818 . 211 Absorbed by Shields . | . . . . . . . . . . . Ignored by Resistances 154 | . . . . 109 . . . 45 . . Core Remaining (%) 63 | 100 57 49 45 50 . 81 . . . . Volleys Fired 393 | 17 43 33 79 146 . 8 1 66 . . Largest 3 | 2 2 2 2 2 . 3 2 3 . . Hottest 217 | 60 60 90 106 130 . 164 136 217 . . Shots Fired 710 | 34 86 67 157 271 . 19 2 74 . . Gun 333 | 34 86 62 105 9 . 7 1 29 . . Cannon 333 | . . . 51 228 . 11 1 42 . . Launcher 43 | . . 5 1 34 . 1 . 2 . . Special 1 | . . . . . . . . 1 . . Kinetic 237 | 17 43 . 81 62 . 7 . 27 . . Thermal 180 | 17 43 . 6 97 . . . 17 . . Explosive 21 | . . 5 . 13 . 1 . 2 . . Electromagnetic 271 | . . 62 70 99 . 11 2 27 . . Robot Hit Streak 22 | 4 9 10 16 22 . 10 11 15 . . Robot Miss Streak 6 | 2 2 3 3 2 . 1 . 6 . . Penetration Max 1 | . . . 1 . . . . . . . Secondary Targets 4 | . 2 1 1 . . . . . . . Max Gunslinging Chain 1 | . 1 1 1 . . . . . . . Shots Hit Robots 528 | 20 61 43 125 213 . 16 1 49 . . Core Hits 293 | 6 23 22 58 149 . 11 1 23 . . Critical Kills 4 | . 1 . 1 2 . . . . . . Critical Parts Destroyed 7 | . . . 1 1 . . . 5 . . Critical Strikes 28 | . 1 3 10 8 . . . 6 . . Burn 1 | . . . 1 . . . . . . . Destroy 3 | . 1 . 2 . . . . . . . Blast 8 | . . . 4 4 . . . . . . Corrupt 7 | . . 3 3 1 . . . . . . Smash 8 | . . . . 3 . . . 5 . . Impale 1 | . . . . . . . . 1 . . Melee Attacks 28 | . . . . 9 . . . 19 . . Impact 24 | . . . . 9 . . . 15 . . Slashing . | . . . . . . . . . . . Piercing 4 | . . . . . . . . 4 . . Sneak Attacks 4 | . . . . 4 . . . . . . Combat Hostiles . | . . . . . . . . . . . Follow-up Attacks . | . . . . . . . . . . . Damage Inflicted 16899 | 196 601 962 2698 10038 . 528 34 1842 . . Guns 3490 | 196 595 650 1464 80 . 125 34 346 . . Cannons 6696 | . . . 931 4897 . 217 . 651 . . Explosions 5447 | . . 306 271 4540 . 186 . 144 . . Melee 1203 | . . . . 502 . . . 701 . . Ramming 63 | . 6 6 32 19 . . . . . . Kinetic 3334 | 98 273 . 1484 1049 . 108 . 322 . . Thermal 4292 | 98 322 245 324 3013 . . . 290 . . Explosive 2654 | . . 61 . 2263 . 186 . 144 . . Electromagnetic 5353 | . . 650 858 3192 . 234 34 385 . . Impact 1127 | . . . . 502 . . . 625 . . Slashing . | . . . . . . . . . . . Piercing 76 | . . . . . . . . 76 . . Highest Corruption 38 | . . 4 25 9 . . . 38 38 38 Average Corruption 9 | . . 4 14 4 . . . 22 38 38 Corruption Purged . | . . . . . . . . . . . Corruption Blocked . | . . . . . . . . . . . Effects 137 | . . 13 1 58 . . . 61 2 2 Message Errors 28 | . . 2 . 12 . . . 12 1 1 Matter Fused 32 | . . 2 1 12 . . . 17 . . Heat Flow Errors 17 | . . 1 . 7 . . . 8 . 1 Energy Discharges 18 | . . 3 . 11 . . . 4 . . Parts Rejected 5 | . . 1 . . . . . 4 . . Parts Fused 1 | . . . . . . . . . 1 . Data Loss (minor) 20 | . . 2 . 9 . . . 9 . . Data Loss (major) 8 | . . 1 . 6 . . . 1 . . Misfires 2 | . . 1 . 1 . . . . . . Misdirections 3 | . . . . . . . . 3 . . Weapon Failures 3 | . . . . . . . . 3 . . Overload Shots . | . . . . . . . . . . . Overflow Damage 1010 | . . 6 . 503 . . . 501 . . Projectiles 150 | . . . . 141 . . . 9 . . Explosions 154 | . . 6 . 125 . . . 23 . . Melee 706 | . . . . 237 . . . 469 . . Knockbacks 16 | . . . 8 7 . . . 1 . . Impact 4 | . . . 1 2 . . . 1 . . Kinetic 10 | . . . 6 4 . . . . . . Secondary 2 | . . . 1 1 . . . . . . Self-Inflicted Damage 569 | . . 81 47 406 . . . 35 . . Shots 16 | . . 3 2 10 . . . 1 . . Rammed 12 | . 3 2 6 1 . . . . . . Targets Rammed 14 | . 3 2 6 3 . . . . . . Kicked . | . . . . . . . . . . . Crushed 2 | . . . . 2 . . . . . . Highest Temperature 332 | 40 254 202 186 271 . 27 51 332 . 97 Average Temperature 72 | 19 74 42 73 55 . 14 28 113 . 61 Received Heat Transfer 3282 | . 234 198 702 1074 . 21 . 990 . 63 Effects 1 | . . . . . . . . 1 . . Shutdowns 1 | . . . . . . . . 1 . . Siege Activations . | . . . . . . . . . . . Martial Activations . | . . . . . . . . . . . Shielding Activations . | . . . . . . . . . . . Robots Disrupted 2 | . . . . 1 . 1 . . . . Combat Hostiles 2 | . . . . 1 . 1 . . . . Robots Corrupted 7 | . . 1 . 4 . . . 2 . . Combat Hostiles 5 | . . 1 . 2 . . . 2 . . Parts Fried 24 | . . 4 2 13 . 3 . 2 . . Impact Corruptions 20 | . . . . 8 . . . 12 . . Robots Melted 2 | . . . . 2 . . . . . . Combat Hostiles 2 | . . . . 2 . . . . . . Parts Melted 10 | . . 1 . 8 . . . 1 . . Heat Transferred 6217 | 225 725 350 659 3808 . . . 450 . . Parts Sabotaged . | . . . . . . . . . . . Parts Stolen . | . . . . . . . . . . . Parts Stripped . | . . . . . . . . . . . Power Chain Reactions 17 | . . 4 5 8 . . . . . . Alert | -11 -10 -9 -8 -7 -6 -6 -5 -5 -5 -5 ------- Run | Yrd Mat Mat Mat Fac Fac DSF Fac Gar Fac Ext Maximum Alert Level 4 | . . . . 4 2 2 1 2 1 . Low Security (%) 44 | 100 100 100 100 14 . . . 5 . 100 Level 1 26 | . . . . 28 . . 100 75 100 . Level 2 17 | . . . . 27 100 100 . 18 . . Level 3 8 | . . . . 20 . . . . . . Level 4 3 | . . . . 9 . . . . . . Level 5 . | . . . . . . . . . . . High Security . | . . . . . . . . . . . Max Security . | . . . . . . . . . . . Peak Influence 1402 | 5 132 175 159 1402 691 572 300 558 266 125 Initial 686 | . . 14 42 66 686 483 300 161 266 125 Average 321 | 1 37 72 64 544 686 513 267 331 263 120 Influence Increases 4427 | 20 278 477 643 2177 5 129 11 687 . . Destroy 0b10 Robot/C 2320 | . 200 240 480 1220 . 80 . 100 . . Destroy 0b10 Robot/NC 280 | 20 15 25 30 180 . 5 5 . . . Destroy Leader 568 | . 44 78 102 302 . 10 2 30 . . Successful Hack 36 | . 19 8 . . 5 . 4 . . . Disable Machine 300 | . . 45 15 240 . . . . . . Anti-Garrison Action 450 | . . . . . . . . 450 . . Destroy Structure 248 | . . 51 16 145 . 4 . 32 . . Lose Combat Pursuer 225 | . . 30 . 90 . 30 . 75 . . Influence Decreases 4312 | 20 242 413 596 922 716 248 352 410 252 141 Entered New Map 1800 | . . 22 58 81 716 208 272 70 242 131 Time Decay 1852 | 20 242 381 398 711 . . 80 . 10 10 Lost Part 630 | . . 10 140 130 . 40 . 310 . . Lost Ally 30 | . . . . . . . . 30 . . Squads Dispatched 32 | . 1 . 7 23 . 1 . . . . Investigation 7 | . . . 3 4 . . . . . . Extermination 6 | . . . . 6 . . . . . . Reinforcement 14 | . 1 . 4 8 . 1 . . . . Assault 2 | . . . . 2 . . . . . . Garrison 3 | . . . . 3 . . . . . . Intercept . | . . . . . . . . . . . Searches Triggered . | . . . . . . . . . . . Construction Impeded 4 | . . . 1 3 . . . . . . Haulers Reinforced 1 | . . . . 1 . . . . . . Active Scanning Responses . | . . . . . . . . . . . Cargo Convoy Interrupts . | . . . . . . . . . . . Stealth | -11 -10 -9 -8 -7 -6 -6 -5 -5 -5 -5 --------- Run | Yrd Mat Mat Mat Fac Fac DSF Fac Gar Fac Ext Distress Signals 2 | . . 1 . 1 . . . . . . Communications Jammed . | . . . . . . . . . . . Distress Signals . | . . . . . . . . . . . Times Spotted 244 | . 17 21 29 86 . 11 6 68 2 4 Peak Tracking Total 9 | . 6 6 4 6 . 4 5 9 4 4 Tactical Retreats 25 | . . 1 . 6 . 2 . 16 . . Traps | -11 -10 -9 -8 -7 -6 -6 -5 -5 -5 -5 ------- Run | Yrd Mat Mat Mat Fac Fac DSF Fac Gar Fac Ext Traps Triggered 8 | . . . 1 6 . . . 1 . . Indirectly 1 | . . . . 1 . . . . . . Trap Hack Attempts . | . . . . . . . . . . . Triggered . | . . . . . . . . . . . Disarmed . | . . . . . . . . . . . Reprogrammed . | . . . . . . . . . . . Reused . | . . . . . . . . . . . Traps Extracted . | . . . . . . . . . . . Installed . | . . . . . . . . . . . Triggered . | . . . . . . . . . . . Machines | -11 -10 -9 -8 -7 -6 -6 -5 -5 -5 -5 ---------- Run | Yrd Mat Mat Mat Fac Fac DSF Fac Gar Fac Ext Machines Disabled 20 | . . 3 1 16 . . . . . . Max in Single Turn 4 | . . 1 1 4 . . . . . . Garrison Relay 1 | . . . . . . . . 1 . . Machines Repaired . | . . . . . . . . . . . Machines Dismantled . | . . . . . . . . . . . Machines Sabotaged . | . . . . . . . . . . . Overloaded Fab Kills . | . . . . . . . . . . . Hacking | -11 -10 -9 -8 -7 -6 -6 -5 -5 -5 -5 --------- Run | Yrd Mat Mat Mat Fac Fac DSF Fac Gar Fac Ext Machines Accessed 22 | . 5 7 2 3 1 . 3 1 . . Terminals 20 | . 5 7 2 3 1 . 1 1 . . Fabricators . | . . . . . . . . . . . Repair Stations . | . . . . . . . . . . . Recycling Units 1 | . . . . . . . 1 . . . Scanalyzers . | . . . . . . . . . . . Garrison Access 1 | . . . . . . . 1 . . . Total Hacks 51 | . 15 14 7 8 1 . 3 3 . . Successful 9 | . 4 2 . . 1 . 2 . . . Failed 42 | . 11 12 7 8 . . 1 3 . . Catastrophic 8 | . 1 1 3 2 . . 1 . . . Database Lockouts . | . . . . . . . . . . . Manual 18 | . . 3 7 8 . . . . . . Terminals 49 | . 15 14 7 8 1 . 1 3 . . Fabricators . | . . . . . . . . . . . Repair Stations . | . . . . . . . . . . . Recycling Units 1 | . . . . . . . 1 . . . Scanalyzers . | . . . . . . . . . . . Garrison Access 1 | . . . . . . . 1 . . . Terminal Hacks 7 | . 4 2 . . 1 . . . . . Open DSF 1 | . . . . . 1 . . . . . Branch Access Points 1 | . . 1 . . . . . . . . Dispatch Records 1 | . . 1 . . . . . . . . Patrol Status 1 | . 1 . . . . . . . . . Transport Status 1 | . 1 . . . . . . . . . Registered Components 1 | . 1 . . . . . . . . . Zone Layout 1 | . 1 . . . . . . . . . Fabricator Hacks . | . . . . . . . . . . . Repair Station Hacks . | . . . . . . . . . . . Recycling Unit Hacks 1 | . . . . . . . 1 . . . Retrieve Components 1 | . . . . . . . 1 . . . Scanalyzer . | . . . . . . . . . . . Garrison Access Hacks 1 | . . . . . . . 1 . . . Unlock Access 1 | . . . . . . . 1 . . . Unauthorized Hacks . | . . . . . . . . . . . Terminals . | . . . . . . . . . . . Fabricators . | . . . . . . . . . . . Repair Stations . | . . . . . . . . . . . Recycling Units . | . . . . . . . . . . . Scanalyzers . | . . . . . . . . . . . Garrison Access . | . . . . . . . . . . . Data Cores Recovered . | . . . . . . . . . . . Used . | . . . . . . . . . . . Hacking Detections 18 | . 4 6 2 3 1 . 1 1 . . Full Trace Events 6 | . . 1 2 2 . . . 1 . . Feedback Events . | . . . . . . . . . . . Feedback Blocked . | . . . . . . . . . . . Robot Schematics Acquired . | . . . . . . . . . . . Robots Built . | . . . . . . . . . . . Authchips . | . . . . . . . . . . . Time . | . . . . . . . . . . . Total Robot Build Rating . | . . . . . . . . . . . Part Schematics Acquired . | . . . . . . . . . . . Parts Built . | . . . . . . . . . . . Authchips . | . . . . . . . . . . . Time . | . . . . . . . . . . . Total Part Build Rating . | . . . . . . . . . . . Part Studies Acquired . | . . . . . . . . . . . Parts Repaired . | . . . . . . . . . . . Time . | . . . . . . . . . . . Parts Recycled . | . . . . . . . . . . . Recycled Matter . | . . . . . . . . . . . Retrieved Matter . | . . . . . . . . . . . Retrieved Components 1 | . . . . . . . 1 . . . Parts Scanalyzed . | . . . . . . . . . . . Part Schematics Acquired . | . . . . . . . . . . . Parts Damaged . | . . . . . . . . . . . Bothacking | -11 -10 -9 -8 -7 -6 -6 -5 -5 -5 -5 ------------ Run | Yrd Mat Mat Mat Fac Fac DSF Fac Gar Fac Ext Used RIF Installer . | . . . . . . . . . . . Robots Hacked 1 | . . . . . . . . 1 . . Non-combat . | . . . . . . . . . . . Combat 1 | . . . . . . . . 1 . . Robot Hacks Applied 1 | . . . . . . . . 1 . . parse_system 1 | . . . . . . . . 1 . . Relay Couplers Released 8 | . . . . . . . . 8 . . Machine Destruction 4 | . . . . . . . . 4 . . Programmers 4 | . . . . . . . . 4 . . Fabnet Peak Effective % . | . . . . . . . . . . . Robots Rewired . | . . . . . . . . . . . Allies Hacked . | . . . . . . . . . . . Hacks Repelled . | . . . . . . . . . . . Allies | -11 -10 -9 -8 -7 -6 -6 -5 -5 -5 -5 -------- Run | Yrd Mat Mat Mat Fac Fac DSF Fac Gar Fac Ext Total Allies . | . . . . . . . . . . . Largest Group . | . . . . . . . . . . . Highest-Rated Group . | . . . . . . . . . . . Highest-Rated Ally . | . . . . . . . . . . . Initial Warlord ECA Mod 3 | . . . . . . . . . 3 3 Total Orders . | . . . . . . . . . . . Ally Attacks . | . . . . . . . . . . . Total Damage . | . . . . . . . . . . . Kills . | . . . . . . . . . . . Allies Corrupted . | . . . . . . . . . . . Allies Melted . | . . . . . . . . . . . Intel | -11 -10 -9 -8 -7 -6 -6 -5 -5 -5 -5 ------- Run | Yrd Mat Mat Mat Fac Fac DSF Fac Gar Fac Ext Active Infowar (turns) 1917 | 78 558 . . 205 8 199 166 703 . . Sensors 1279 | . . . . 203 8 199 166 703 . . A.S.S. 2 | . . . . 2 . . . . . . Terrain 636 | 78 558 . . . . . . . . . Robot Analysis Total . | . . . . . . . . . . . Derelict Logs Recovered . | . . . . . . . . . . . Drone Launches 3 | . . . . . . . . 3 . . Drone Recoveries . | . . . . . . . . . . . Exploration | -11 -10 -9 -8 -7 -6 -6 -5 -5 -5 -5 ------------- Run | Yrd Mat Mat Mat Fac Fac DSF Fac Gar Fac Ext Turns Passed 7742 | 179 759 935 956 3210 8 199 166 1271 24 35 Spaces Moved 3925 | 80 379 465 393 1396 6 98 121 819 69 99 Core 8 | 7 . . . . . . . 1 . . Treads 2736 | 73 379 465 393 1395 6 25 . . . . Legs 564 | . . . . . . 73 121 370 . . Wheels . | . . . . . . . . . . . Hover . | . . . . . . . . . . . Flight 617 | . . . . 1 . . . 448 69 99 Fastest Speed 30 | 50 160 160 160 152 155 120 120 30 35 35 Average Speed 152 | 150 160 160 161 186 155 142 120 112 35 35 Slowest Speed 620 | 160 160 240 240 620 155 260 120 450 35 35 Overloaded Moves . | . . . . . . . . . . . Propulsion Burnouts . | . . . . . . . . . . . Robots Hopped 7 | . . . . . . . . 6 . 1 Potential Cave-ins . | . . . . . . . . . . . Cave-ins Triggered 1 | . . 1 . . . . . . . . Exploration Rate (%) 36 | 5 66 53 40 43 . 69 3 57 3 26 Regions Visited 10 Branch Regions 1 Pre-discovered Areas . | . . . . . . . . . . . Known Exits Taken 3 | . . . . 1 1 . 1 . . . Unknown Exits Taken 5 | 1 1 1 1 . . . . . 1 . Scrap Searched . | . . . . . . . . . . . Spaces Dug 2 | . . . . 1 . . . 1 . . Terrain Destroyed 251 | . . 55 16 162 . 4 . 14 . . Melee 2 | . . . . 1 . . . 1 . . Projectile 14 | . . . 4 10 . . . . . . AOE 235 | . . 55 12 151 . 4 . 13 . . Terrain Rammed . | . . . . . . . . . . . Walls Destroyed . | . . . . . . . . . . . Machines Disabled . | . . . . . . . . . . . Actions | -11 -10 -9 -8 -7 -6 -6 -5 -5 -5 -5 --------- Run | Yrd Mat Mat Mat Fac Fac DSF Fac Gar Fac Ext Total 4898 | 105 454 588 546 1713 5 138 139 1044 68 98 Wait 251 | . 3 62 28 57 . 4 12 85 . . Move 3902 | 79 378 464 392 1395 5 97 120 807 68 97 Hop 6 | . . . . . . . . 5 . 1 Pick Up 70 | 2 9 7 8 22 . 11 2 9 . . Fast Attach 56 | 7 . 4 9 10 . 6 . 20 . . Attach 26 | . . 1 8 9 . . 1 7 . . Detach 5 | . . 2 . 1 . . . 2 . . Swap 67 | . 9 7 12 28 . 7 2 2 . . Drop 59 | . 9 6 4 30 . 5 1 4 . . Fire 393 | 17 43 33 79 146 . 8 1 66 . . Melee 28 | . . . . 9 . . . 19 . . Ram . | . . . . . . . . . . . Kick . | . . . . . . . . . . . Crush 14 | . 3 2 6 3 . . . . . . Escape Stasis 20 | . . . . 2 . . . 18 . . Rewire 1 | . . . . 1 . . . . . . Trap . | . . . . . . . . . . . Miscellaneous . | . . . . . . . . . . . Route ------- -11/Scrapyard -10/Materials (discovered 4 exits: *Mat x3 / [*Sub]) -9/Materials (discovered 4 exits: *Mat x2 / *Min x2) -8/Materials -7/Factory -6/Factory -6/DSF -5/Factory -5/Garrison (discovered 3 exits: [*Fac x3]) -5/Factory -5/Extension History --------- Turn | Location | Event 5 | -11/Scrapyard | Discovered new exit (range 15) 180 | -11/Scrapyard | Entered Materials 314 | -10/Materials | Build established: Mutant 531 | -10/Materials | Discovered new exit (range 5) 595 | -10/Materials | Discovered new exit (range 14) 650 | -10/Materials | Build established: Scavenger-Mutant 811 | -10/Materials | Discovered new exit (range 3) 925 | -10/Materials | Discovered new exit (range 13) 939 | -10/Materials | Entered another Materials area 939 | -9/Materials | Evolved 2 slots: Utility x2 1001 | -9/Materials | Discovered new exit (range 16) 1007 | -9/Materials | Build established: Mutant 1092 | -9/Materials | Identified exit to Mines 1144 | -9/Materials | Discovered new exit (range 13) 1226 | -9/Materials | Crushed by falling debris 1857 | -9/Materials | Discovered new exit (range 11) 1864 | -9/Materials | Core integrity fell below 50% 1874 | -9/Materials | Entered another Materials area 1874 | -8/Materials | Evolved 2 slots: Propulsion x1, Utility x1 2374 | -8/Materials | Build established: Scavenger-Mutant 2777 | -8/Materials | Discovered new exit (range 12) 2781 | -8/Materials | Core integrity fell below 50% 2784 | -8/Materials | Destroyed 7 combat bots 2819 | -8/Materials | System corruption reached 10% 2820 | -8/Materials | Lost 7 parts (1p2n1u3w) 2830 | -8/Materials | Entered Factory 2830 | -7/Factory | Evolved 2 slots: Utility x2 3065 | -7/Factory | Found Prototype Device 3065 | -7/Factory | Identified Active Sensor Suite 3281 | -7/Factory | Garrison activated, responded to threat 3506 | -7/Factory | Discovered new exit (range 7) 3585 | -7/Factory | Allied Derelicts emerged from ambush trap array 5014 | -7/Factory | Found Unknown Protection 5014 | -7/Factory | Identified Powered Armor 5630 | -7/Factory | First assault squad dispatched 5643 | -7/Factory | Build established: Mutant 5794 | -7/Factory | Destroyed 8 combat bots 6039 | -7/Factory | Identified exit to Factory 6040 | -7/Factory | Entered another Factory area 6040 | -6/Factory | Evolved 2 slots: Propulsion x1, Weapon x1 6047 | -6/Factory | Identified exit to DSF 6048 | -6/Factory | Entered DSF 6087 | -6/DSF | Additional patrols routed to DSF 6156 | -6/DSF | Lost 4 parts (2n1u1w) 6226 | -6/DSF | Discovered new exit (range 15) 6245 | -6/DSF | Identified exit to Factory 6247 | -6/DSF | Entered Factory 6247 | -5/Factory | Evolved 2 slots: Power x1, Weapon x1 6394 | -5/Factory | Build established: Gunner 6412 | -5/Factory | Identified exit to Garrison 6413 | -5/Factory | Entered Garrison 6459 | -5/Garrison | Spotted B-75 Beast 6461 | -5/Garrison | Triggered checkpoint 6462 | -5/Garrison | Assembled breached garrison interior 6660 | -5/Garrison | Destroyed B-75 Beast 6828 | -5/Garrison | System corruption reached 10% 6873 | -5/Garrison | Lost 7 parts (2p1n2u2w) 6892 | -5/Garrison | Destroyed 7 combat bots 6947 | -5/Garrison | Build established: Mutant 6984 | -5/Garrison | Lost 3 parts (2n1w) 7100 | -5/Garrison | System corruption reached 30% 7113 | -5/Garrison | Core integrity fell below 50% 7175 | -5/Garrison | Lost 13 parts (2p4n4u3w) 7233 | -5/Garrison | Discovered new exit (range 10) 7394 | -5/Garrison | Discovered new exit (range 9) 7495 | -5/Garrison | Build established: Scavenger-Mutant 7512 | -5/Garrison | Discovered new exit (range 12) 7670 | -5/Garrison | Core integrity fell below 20% 7684 | -5/Garrison | Entered Factory 7692 | -5/Factory | Lost 3 allies 7704 | -5/Factory | Discovered new exit (range 14) 7707 | -5/Factory | Lost 7 parts (1p3n1u2w) 7708 | -5/Factory | Entered Extension 7734 | -5/Extension | Spotted B-75 Beast 7737 | -5/Extension | Spotted B-75 Beast 7743 | -5/Extension | Destroyed by B-75 Beast with Heavy Plasma Cannon Last Messages --------------- G003. Transmitting hostile system tracking data. 07676_ System corrupted: Matter fused (-8). 07676_ VTOL Module destroyed. LOCATION=UNKNOWN GOAL=ESCAPE 07691_ 3SGM7SS1%76DI|